[Event "32nd NATO Chess Championship"]
[Site "Tartu, Estonia"]
[Date "2022.06.30"]
[Round "6.40"]
[White "Adolfssen, Rico"]
[Black "Papler, Peter"]
[Result "0-1"]
[TimeControl "90 min + 30 sec increment from move one"]
[WhiteFideId "1400371"]
[BlackFideId "14609770"]
[WhiteElo "1837"]
[BlackElo "1714"]

1. e4 {[%clk 01:30:53]} {[%emt 00:00:07]} d6 {[%clk 01:30:54]} {[%emt
00:00:07]} 2. d4 {[%clk 01:30:49]} {[%emt 00:00:34]} Nf6 {[%clk 01:31:16]}
{[%emt 00:00:07]} 3. Nc3 {[%clk 01:30:25]} {[%emt 00:00:54]} Nbd7 {[%clk
01:31:28]} {[%emt 00:00:18]} 4. Bc4 {[%clk 01:28:43]} {[%emt 00:02:13]} e5
{[%emt 00:00:33]} 5. Nf3 {[%clk 01:26:59]} {[%emt 00:02:09]} Be7 {[%clk
01:31:32]} {[%emt 00:00:26]} 6. O-O {[%clk 01:22:52]} {[%emt 00:04:38]} O-O
{[%clk 01:31:36]} {[%emt 00:00:26]} 7. Qe2 {[%clk 01:19:39]} {[%emt 00:03:43]}
c6 {[%clk 01:31:41]} {[%emt 00:00:25]} 8. Rd1 {[%clk 01:14:35]} {[%emt
00:05:34]} Qc7 {[%clk 01:31:42]} {[%emt 00:00:29]} 9. Bb3 {[%clk 01:10:47]}
{[%emt 00:04:19]} a6 {[%clk 01:29:47]} {[%emt 00:02:25]} 10. a4 {[%clk
01:07:28]} {[%emt 00:03:49]} b6 {[%clk 01:29:11]} {[%emt 00:01:06]} 11. Nh4
{[%clk 00:57:45]} {[%emt 00:10:13]} Re8 {[%clk 01:27:44]} {[%emt 00:01:56]} 12.
Qc4 {[%clk 00:47:35]} {[%emt 00:10:40]} Rf8 {[%clk 01:25:48]} {[%emt 00:02:18]}
13. Nf5 {[%clk 00:45:24]} {[%emt 00:02:49]} Bd8 {[%clk 01:23:46]} {[%emt
00:02:32]} 14. Qd3 {[%clk 00:41:27]} {[%emt 00:04:27]} Bb7 {[%clk 01:20:17]}
{[%emt 00:04:00]} 15. Bh6 {[%clk 00:37:04]} {[%emt 00:04:52]} Ne8 {[%clk
01:17:24]} {[%emt 00:03:23]} 16. Qg3 {[%clk 00:32:04]} {[%emt 00:05:29]} Bf6
{[%clk 01:17:34]} {[%emt 00:00:21]} 17. Be3 {[%clk 00:29:58]} {[%emt 00:02:36]}
Kh8 {[%clk 01:16:00]} {[%emt 00:02:05]} 18. dxe5 {[%clk 00:26:45]} {[%emt
00:03:43]} Nxe5 {[%clk 01:08:20]} {[%emt 00:08:10]} 19. Rd2 {[%clk 00:24:31]}
{[%emt 00:02:43]} Rd8 {[%clk 01:07:46]} {[%emt 00:01:04]} 20. Rad1 {[%clk
00:24:32]} {[%emt 00:00:30]} Bc8 {[%clk 01:07:48]} {[%emt 00:00:28]} 21. Bg5
{[%clk 00:20:28]} {[%emt 00:04:34]} Bxf5 {[%clk 01:07:08]} {[%emt 00:01:10]} 22.
exf5 {[%clk 00:18:13]} {[%emt 00:02:44]} Bxg5 {[%clk 00:58:03]} {[%emt
00:09:35]} 23. Qxg5 {[%clk 00:18:35]} {[%emt 00:00:08]} Nf6 {[%clk 00:57:43]}
{[%emt 00:00:48]} 24. f4 {[%emt 00:03:07]} Neg4 {[%clk 00:57:00]} {[%emt
00:01:01]} 25. Rd3 {[%clk 00:14:05]} {[%emt 00:02:37]} b5 {[%clk 00:54:28]}
{[%emt 00:03:03]} 26. Qh4 {[%clk 00:10:41]} {[%emt 00:03:52]} Qa7+ {[%clk
00:52:54]} {[%emt 00:02:05]} 27. Kf1 {[%clk 00:10:51]} {[%emt 00:00:20]} Ne3+
{[%clk 00:52:56]} {[%emt 00:00:28]} 28. Rxe3 {[%clk 00:08:54]} {[%emt
00:02:28]} Qxe3 {[%clk 00:53:13]} {[%emt 00:00:13]} 29. axb5 {[%clk 00:08:19]}
{[%emt 00:01:04]} axb5 {[%clk 00:53:22]} {[%emt 00:00:21]} 30. Re1 {[%clk
00:08:26]} {[%emt 00:00:23]} Qc5 {[%clk 00:51:49]} {[%emt 00:02:04]} 31. g4
{[%clk 00:08:23]} {[%emt 00:00:32]} d5 {[%clk 00:51:30]} {[%emt 00:00:49]} 32.
g5 {[%clk 00:08:31]} {[%emt 00:00:21]} Ne4 {[%clk 00:40:49]} {[%emt 00:11:12]}
33. Nxe4 {[%clk 00:08:24]} {[%emt 00:00:37]} dxe4 {[%clk 00:41:13]} {[%emt
00:00:07]} 34. g6 {[%clk 00:07:25]} {[%emt 00:01:28]} h6 {[%clk 00:41:33]}
{[%emt 00:00:10]} 35. gxf7 {[%clk 00:06:37]} {[%emt 00:01:18]} Qxf5 {[%clk
00:41:28]} {[%emt 00:00:35]} 36. Qf2 {[%clk 00:04:55]} {[%emt 00:02:13]} c5
{[%clk 00:41:33]} {[%emt 00:00:24]} 37. c4 {[%clk 00:04:52]} {[%emt 00:00:33]}
Qh3+ {[%clk 00:41:14]} {[%emt 00:00:49]} 38. Qg2 {[%clk 00:04:50]} {[%emt
00:00:32]} Qxb3 {[%clk 00:41:24]} {[%emt 00:00:21]} 39. Rxe4 {[%emt 00:00:20]}
Rd1+ {[%clk 00:41:15]} {[%emt 00:00:39]} 40. Re1 {[%clk 00:05:01]} {[%emt
00:00:29]} Qxc4+ {[%clk 00:40:59]} {[%emt 00:00:46]} 0-1

[Event "32nd NATO Chess Championship"]
[Site "Tartu, Estonia"]
[Date "2022.06.30"]
[Round "6.41"]
[White "Ivanovs, Aleksejs"]
[Black "Ross, David C"]
[Result "1/2-1/2"]
[TimeControl "90 min + 30 sec increment from move one"]
[WhiteFideId "11626283"]
[BlackFideId "417572"]
[WhiteElo "1784"]
[BlackElo "1677"]

1. d4 {[%clk 01:30:54]} {[%emt 00:00:05]} Nf6 {[%clk 01:30:48]} {[%emt
00:00:12]} 2. Bf4 {[%clk 01:30:46]} {[%emt 00:00:38]} c5 {[%clk 01:30:51]}
{[%emt 00:00:28]} 3. e3 {[%clk 01:29:51]} {[%emt 00:01:24]} d5 {[%clk
01:30:43]} {[%emt 00:00:38]} 4. c4 {[%clk 01:28:33]} {[%emt 00:01:49]} e6
{[%clk 01:28:06]} {[%emt 00:03:07]} 5. Nf3 {[%clk 01:27:50]} {[%emt 00:01:14]}
Bd6 {[%clk 01:26:24]} {[%emt 00:02:11]} 6. Ne5 {[%clk 01:25:20]} {[%emt
00:03:00]} O-O {[%clk 01:23:01]} {[%emt 00:03:54]} 7. Be2 {[%clk 01:24:18]}
{[%emt 00:01:31]} cxd4 {[%clk 01:20:45]} {[%emt 00:02:46]} 8. Qxd4 {[%clk
01:22:18]} {[%emt 00:02:29]} Nc6 {[%clk 01:18:59]} {[%emt 00:02:17]} 9. Nxc6
{[%clk 01:21:52]} {[%emt 00:00:55]} bxc6 {[%clk 01:18:43]} {[%emt 00:00:46]} 10.
Bxd6 {[%clk 01:21:27]} {[%emt 00:00:56]} Qxd6 {[%clk 01:18:32]} {[%emt
00:00:39]} 11. O-O {[%emt 00:01:30]} c5 {[%emt 00:02:00]} 12. Qd1 {[%clk
01:14:12]} {[%emt 00:04:16]} Qb6 {[%clk 01:13:39]} {[%emt 00:05:24]} 13. b3
{[%clk 01:12:17]} {[%emt 00:02:25]} Rd8 {[%clk 01:09:20]} {[%emt 00:04:49]} 14.
Qc2 {[%clk 01:11:04]} {[%emt 00:01:43]} Bb7 {[%clk 01:02:18]} {[%emt 00:07:32]}
15. Nd2 {[%clk 01:06:55]} {[%emt 00:04:38]} d4 {[%clk 00:56:17]} {[%emt
00:06:31]} 16. exd4 {[%clk 01:03:15]} {[%emt 00:04:10]} cxd4 {[%clk 00:55:13]}
{[%emt 00:01:35]} 17. Nf3 {[%clk 01:02:48]} {[%emt 00:00:56]} Qc6 {[%clk
00:48:52]} {[%emt 00:06:51]} 18. Rad1 {[%clk 00:57:02]} {[%emt 00:06:16]} e5
{[%clk 00:46:58]} {[%emt 00:02:24]} 19. Rfe1 {[%clk 00:55:22]} {[%emt
00:02:10]} Re8 {[%clk 00:34:40]} {[%emt 00:12:48]} 20. Bf1 {[%clk 00:53:41]}
{[%emt 00:02:11]} Nd7 {[%clk 00:33:28]} {[%emt 00:01:43]} 21. b4 {[%clk
00:39:13]} {[%emt 00:14:58]} Qg6 {[%clk 00:26:20]} {[%emt 00:07:37]} 22. Qxg6
{[%clk 00:36:53]} {[%emt 00:02:50]} hxg6 {[%clk 00:26:45]} {[%emt 00:00:05]} 23.
Rc1 {[%clk 00:36:31]} {[%emt 00:00:53]} a5 {[%clk 00:22:44]} {[%emt 00:04:31]}
24. b5 {[%clk 00:35:15]} {[%emt 00:01:45]} Rac8 {[%clk 00:22:19]} {[%emt
00:00:55]} 25. c5 {[%clk 00:28:34]} {[%emt 00:07:12]} Bxf3 {[%clk 00:19:51]}
{[%emt 00:02:58]} 26. c6 {[%clk 00:27:21]} {[%emt 00:01:41]} Bxc6 {[%clk
00:19:17]} {[%emt 00:01:06]} 27. bxc6 {[%clk 00:26:11]} {[%emt 00:01:40]} Nb6
{[%clk 00:17:39]} {[%emt 00:02:08]} 28. Bb5 {[%clk 00:22:39]} {[%emt 00:03:48]}
Re7 {[%clk 00:15:00]} {[%emt 00:03:24]} 29. Rc5 {[%clk 00:20:14]} {[%emt
00:02:54]} e4 {[%clk 00:12:44]} {[%emt 00:02:45]} 30. Ba6 {[%clk 00:18:29]}
{[%emt 00:02:16]} Rcc7 {[%clk 00:11:22]} {[%emt 00:01:52]} 31. f3 {[%clk
00:17:39]} {[%emt 00:01:20]} f5 {[%clk 00:08:30]} {[%emt 00:03:23]} 32. Rb1
{[%clk 00:16:13]} {[%emt 00:01:52]} Nc8 {[%clk 00:04:42]} {[%emt 00:04:20]} 33.
Rb7 {[%clk 00:16:03]} {[%emt 00:00:40]} d3 {[%clk 00:04:17]} {[%emt 00:00:56]}
34. Rxc7 {[%clk 00:14:13]} {[%emt 00:01:12]} Rxc7 {[%clk 00:04:35]} {[%emt
00:01:20]} 35. Kf2 {[%clk 00:14:30]} {[%emt 00:00:11]} Nd6 {[%clk 00:03:12]}
{[%emt 00:01:55]} 36. Ke3 {[%clk 00:08:45]} {[%emt 00:06:16]} Kf7 {[%clk
00:02:19]} {[%emt 00:01:23]} 37. fxe4 {[%clk 00:08:46]} {[%emt 00:00:29]} Nxe4
{[%clk 00:01:35]} {[%emt 00:01:13]} 38. Rc4 {[%clk 00:07:40]} {[%emt 00:01:35]}
d2 {[%clk 00:01:29]} {[%emt 00:00:37]} 39. Ke2 {[%clk 00:07:16]} {[%emt
00:00:21]} Ke7 {[%clk 00:01:09]} {[%emt 00:01:23]} 40. Bb7 {[%clk 00:07:37]}
{[%emt 00:00:09]} Ke6 {[%clk 00:00:57]} {[%emt 00:00:43]} 41. Rd4 {[%clk
00:07:34]} {[%emt 00:00:32]} Ke7 {[%clk 00:00:56]} {[%emt 00:00:31]} 42. Kd1
{[%clk 00:05:08]} {[%emt 00:02:55]} Nd6 {[%clk 00:00:37]} {[%emt 00:00:50]} 43.
Ba8 {[%clk 00:05:14]} {[%emt 00:00:23]} Nb5 {[%clk 00:01:01]} {[%emt 00:00:07]}
44. Rxd2 {[%clk 00:04:10]} {[%emt 00:01:33]} Nc3+ {[%clk 00:01:14]} {[%emt
00:00:17]} 45. Kc2 {[%clk 00:04:00]} {[%emt 00:00:39]} Ne4 {[%clk 00:01:08]}
{[%emt 00:00:38]} 46. Rd3 {[%clk 00:03:51]} {[%emt 00:00:38]} Nc5 {[%clk
00:00:53]} {[%emt 00:00:45]} 47. Rc3 {[%clk 00:03:53]} {[%emt 00:00:28]} Na6
{[%clk 00:01:08]} {[%emt 00:00:16]} 48. Kb3 {[%clk 00:03:53]} {[%emt 00:00:30]}
Kd6 {[%clk 00:00:58]} {[%emt 00:00:40]} 49. Ka4 {[%clk 00:03:46]} {[%emt
00:00:37]} Nb4 {[%clk 00:01:07]} {[%emt 00:00:21]} 50. a3 {[%clk 00:03:00]}
{[%emt 00:01:15]} Nxc6 {[%clk 00:00:50]} {[%emt 00:00:46]} 51. Rxc6+ {[%clk
00:03:13]} {[%emt 00:00:17]} Rxc6 {[%clk 00:01:13]} {[%emt 00:00:08]} 52. Bxc6
{[%clk 00:03:38]} {[%emt 00:00:05]} Kxc6 {[%clk 00:01:40]} {[%emt 00:00:03]} 53.
Kxa5 {[%clk 00:03:56]} {[%emt 00:00:12]} Kc5 {[%clk 00:01:58]} {[%emt
00:00:12]} 1/2-1/2

[Event "32nd NATO Chess Championship"]
[Site "Tartu, Estonia"]
[Date "2022.06.30"]
[Round "6.42"]
[White "Smit, Jan"]
[Black "Boudry, Rik"]
[Result "1-0"]
[TimeControl "90 min + 30 sec increment from move one"]
[WhiteFideId "1052047"]
[BlackFideId "237540"]
[WhiteElo "1741"]
[BlackElo "1468"]

1. Nf3 {[%clk 01:30:55]} {[%emt 00:00:04]} Nf6 {[%clk 01:30:35]} {[%emt
00:00:25]} 2. d4 {[%clk 01:31:23]} {[%emt 00:00:03]} c5 {[%clk 01:30:46]}
{[%emt 00:00:18]} 3. c3 {[%clk 01:29:41]} {[%emt 00:02:13]} e6 {[%clk
01:30:58]} {[%emt 00:00:18]} 4. Bg5 {[%clk 01:30:07]} {[%emt 00:00:03]} d5
{[%clk 01:30:55]} {[%emt 00:00:34]} 5. e3 {[%clk 01:30:27]} {[%emt 00:00:10]}
Nbd7 {[%clk 01:30:59]} {[%emt 00:00:25]} 6. Nbd2 {[%clk 01:30:27]} {[%emt
00:00:30]} Bd6 {[%clk 01:30:25]} {[%emt 00:01:04]} 7. Bd3 {[%clk 01:30:06]}
{[%emt 00:00:52]} O-O {[%clk 01:30:00]} {[%emt 00:00:54]} 8. Qe2 {[%clk
01:29:30]} {[%emt 00:01:06]} b6 {[%clk 01:29:22]} {[%emt 00:01:09]} 9. e4
{[%clk 01:18:59]} {[%emt 00:11:00]} cxd4 {[%clk 01:28:35]} {[%emt 00:01:16]} 10.
Nxd4 {[%clk 01:18:07]} {[%emt 00:01:24]} Ne5 {[%clk 01:22:31]} {[%emt
00:06:34]} 11. Bc2 {[%clk 01:13:44]} {[%emt 00:04:54]} Bb7 {[%clk 01:21:39]}
{[%emt 00:01:22]} 12. f4 {[%clk 01:13:17]} {[%emt 00:00:56]} h6 {[%clk
01:08:53]} {[%emt 00:13:16]} 13. fxe5 {[%clk 00:55:35]} {[%emt 00:18:12]} Bxe5
{[%clk 01:07:29]} {[%emt 00:01:53]} 14. Bh4 {[%clk 00:55:08]} {[%emt 00:00:57]}
g5 {[%clk 01:06:46]} {[%emt 00:01:12]} 15. Bf2 {[%clk 00:48:36]} {[%emt
00:07:03]} Bf4 {[%clk 01:01:46]} {[%emt 00:05:30]} 16. e5 {[%clk 00:45:54]}
{[%emt 00:03:12]} Nd7 {[%clk 01:01:43]} {[%emt 00:00:33]} 17. N2f3 {[%clk
00:39:50]} {[%emt 00:06:35]} Nc5 {[%clk 01:01:30]} {[%emt 00:00:42]} 18. g3
{[%clk 00:39:33]} {[%emt 00:00:47]} Ne4 {[%clk 01:01:37]} {[%emt 00:00:24]} 19.
gxf4 {[%clk 00:39:07]} {[%emt 00:00:55]} Nxf2 {[%clk 01:01:47]} {[%emt
00:00:19]} 20. Qxf2 {[%emt 00:03:06]} 1-0

[Event "32nd NATO Chess Championship"]
[Site "Tartu, Estonia"]
[Date "2022.06.30"]
[Round "6.43"]
[White "Echavarria Hidalgo, Fernando"]
[Black "Charles, Freddy"]
[Result "1/2-1/2"]
[TimeControl "90 min + 30 sec increment from move one"]
[WhiteFideId "2617528"]
[BlackFideId "1742"]
[WhiteElo "1749"]
[BlackElo "1742"]

1. e4 {[%clk 01:30:58]} {[%emt 00:00:01]} d5 {[%clk 01:30:53]} {[%emt
00:00:07]} 2. exd5 {[%clk 01:31:13]} {[%emt 00:00:15]} Qxd5 {[%clk 01:31:13]}
{[%emt 00:00:10]} 3. Nc3 {[%clk 01:31:13]} {[%emt 00:00:30]} Qd8 {[%clk
01:31:35]} {[%emt 00:00:08]} 4. d4 {[%clk 01:31:02]} {[%emt 00:00:41]} Nf6
{[%clk 01:31:57]} {[%emt 00:00:08]} 5. Nf3 {[%clk 01:27:40]} {[%emt 00:03:52]}
Bg4 {[%clk 01:32:17]} {[%emt 00:00:10]} 6. Bb5+ {[%clk 01:26:40]} {[%emt
00:01:30]} c6 {[%clk 01:32:03]} {[%emt 00:00:43]} 7. Be2 {[%clk 01:26:50]}
{[%emt 00:00:21]} e6 {[%clk 01:32:13]} {[%emt 00:00:21]} 8. h3 {[%clk
01:25:55]} {[%emt 00:01:25]} Bh5 {[%clk 01:31:02]} {[%emt 00:01:40]} 9. O-O
{[%clk 01:17:52]} {[%emt 00:08:33]} Nbd7 {[%clk 01:27:58]} {[%emt 00:03:34]} 10.
Bf4 {[%clk 01:16:37]} {[%emt 00:01:45]} Be7 {[%clk 01:27:17]} {[%emt 00:01:11]}
11. Ne5 {[%clk 01:13:07]} {[%emt 00:04:00]} Bxe2 {[%clk 01:27:35]} {[%emt
00:00:12]} 12. Qxe2 {[%clk 01:11:01]} {[%emt 00:02:36]} O-O {[%clk 01:27:33]}
{[%emt 00:00:32]} 13. Rad1 {[%clk 01:07:44]} {[%emt 00:03:47]} Nd5 {[%clk
01:26:57]} {[%emt 00:01:06]} 14. Nxd5 {[%clk 01:06:36]} {[%emt 00:01:38]} cxd5
{[%clk 01:27:04]} {[%emt 00:00:24]} 15. Nxd7 {[%clk 01:01:33]} {[%emt
00:05:32]} Qxd7 {[%clk 01:27:22]} {[%emt 00:00:11]} 16. Rfe1 {[%clk 01:00:53]}
{[%emt 00:01:10]} b5 {[%clk 01:25:42]} {[%emt 00:02:11]} 17. a3 {[%clk
00:54:06]} {[%emt 00:07:18]} a5 {[%clk 01:24:32]} {[%emt 00:01:39]} 18. Qg4
{[%clk 00:52:24]} {[%emt 00:02:11]} Rfc8 {[%clk 01:23:14]} {[%emt 00:01:49]} 19.
c3 {[%clk 00:49:32]} {[%emt 00:03:22]} b4 {[%clk 01:15:09]} {[%emt 00:08:34]}
20. axb4 {[%clk 00:46:32]} {[%emt 00:03:31]} axb4 {[%clk 01:14:15]} {[%emt
00:01:24]} 21. Qg3 {[%clk 00:42:12]} {[%emt 00:04:49]} bxc3 {[%clk 01:13:54]}
{[%emt 00:00:51]} 22. bxc3 {[%clk 00:41:52]} {[%emt 00:00:51]} Ra3 {[%clk
01:12:53]} {[%emt 00:01:31]} 23. Rd3 {[%clk 00:37:54]} {[%emt 00:04:28]} Rca8
{[%clk 01:08:12]} {[%emt 00:05:10]} 24. Bh6 {[%clk 00:31:56]} {[%emt 00:06:28]}
g6 {[%clk 01:08:10]} {[%emt 00:00:32]} 25. Qe5 {[%clk 00:31:13]} {[%emt
00:01:14]} Bf8 {[%clk 01:08:05]} {[%emt 00:00:35]} 26. Bxf8 {[%clk 00:30:04]}
{[%emt 00:01:39]} Rxf8 {[%clk 01:08:01]} {[%emt 00:00:33]} 27. h4 {[%clk
00:27:11]} {[%emt 00:03:23]} h5 {[%clk 01:06:36]} {[%emt 00:01:56]} 28. Rg3
{[%clk 00:22:53]} {[%emt 00:04:47]} Kh7 {[%clk 01:04:32]} {[%emt 00:02:34]} 29.
Rge3 {[%clk 00:21:03]} {[%emt 00:02:21]} Qd8 {[%clk 01:01:13]} {[%emt
00:03:49]} 30. g3 {[%clk 00:18:55]} {[%emt 00:02:37]} Qa5 {[%clk 00:59:16]}
{[%emt 00:02:28]} 31. Qd6 {[%clk 00:17:13]} {[%emt 00:02:12]} Ra8 {[%clk
00:56:07]} {[%emt 00:03:38]} 32. Qe7 {[%clk 00:12:49]} {[%emt 00:04:53]} Ra7
{[%clk 00:51:36]} {[%emt 00:05:02]} 33. Qb4 {[%clk 00:12:42]} {[%emt 00:00:38]}
Qc7 {[%clk 00:50:55]} {[%emt 00:01:10]} 34. Qb2 {[%clk 00:12:07]} {[%emt
00:01:05]} R3a6 {[%clk 00:48:05]} {[%emt 00:03:20]} 35. Qc2 {[%clk 00:11:20]}
{[%emt 00:01:18]} Ra4 {[%clk 00:46:57]} {[%emt 00:01:37]} 36. Rc1 {[%clk
00:11:19]} {[%emt 00:00:31]} Rc4 {[%clk 00:46:02]} {[%emt 00:01:25]} 37. Qd2
{[%clk 00:11:24]} {[%emt 00:00:26]} Ra6 {[%clk 00:42:56]} {[%emt 00:03:35]} 38.
Kg2 {[%clk 00:11:31]} {[%emt 00:00:23]} Qb7 {[%clk 00:39:12]} {[%emt 00:04:14]}
39. Qc2 {[%clk 00:11:08]} {[%emt 00:00:52]} Kg7 {[%clk 00:38:12]} {[%emt
00:01:31]} 40. Rb1 {[%clk 00:11:12]} {[%emt 00:00:27]} Qa8 {[%clk 00:37:49]}
{[%emt 00:00:52]} 41. Rb2 {[%clk 00:10:24]} {[%emt 00:01:18]} Rac6 {[%clk
00:37:22]} {[%emt 00:00:56]} 42. Qd2 {[%clk 00:10:09]} {[%emt 00:00:46]} Qc8
{[%clk 00:36:15]} {[%emt 00:01:38]} 43. Rc2 {[%emt 00:03:59]} 1/2-1/2